bitfinex-derivatives/quotes_ETHF0:USTF0_20251006
["timestamp","ask_amount","ask_price","bid_price","bid_amount"]
[1759789050025,0.1239,4702.0,4701.4,0.3042]
[1759789050218,0.1239,4702.0,4701.3,0.43239914]
[1759789050219,0.7451,4701.9,4701.8,0.7343]
[1759789051630,0.5321,4701.9,4701.8,0.7343]
[1759789055234,0.5321,4701.9,4701.8,0.9473]
[1759789055836,0.7451,4701.9,4701.8,0.9473]
[1759789056034,0.7451,4701.9,4701.8,0.213]
[1759789057034,0.7634,4701.4,4701.3,0.00229914]
[1759789057335,0.7634,4701.4,4701.3,0.21529914]
[1759789057535,0.7634,4701.4,4701.3,0.00229914]
[1759789081260,0.7634,4701.4,4701.3,0.22339914]
[1759789081563,0.7634,4701.4,4701.3,0.73929914]
[1759789087164,0.1239,4702.0,4701.3,0.73929914]
[1759789087366,0.3209,4701.9,4701.4,0.3069]
[1759789087672,0.5383,4701.9,4701.8,0.737]
[1759789087872,0.5383,4701.9,4701.8,0.95]
[1759789092171,0.7569,4701.9,4701.8,0.95]
[1759789093677,0.7569,4701.9,4701.8,0.6431]
[1759789093874,0.7569,4701.9,4701.4,0.3069]
[1759789094081,0.7569,4701.4,4701.3,0.22339914]
[1759789094379,0.7569,4701.4,4701.3,0.43639914]
[1759789099583,0.7569,4701.4,4701.3,0.96569914]
[1759789100585,0.7569,4701.4,4701.3,0.75269914]
[1759789100885,0.7569,4701.4,4701.3,0.96569914]
[1759789102287,0.7569,4701.4,4701.3,1.34840914]
[1759789103281,0.7569,4701.4,4701.3,0.96569914]
[1759789106989,0.7569,4701.4,4701.3,0.64539914]
[1759789109290,0.7569,4701.4,4701.3,0.96569914]
[1759789109483,0.7569,4701.4,4701.3,0.64539914]
[1759789110382,0.7569,4701.4,4701.3,0.96569914]
[1759789113495,0.7569,4701.4,4701.3,2.47932996]
[1759789113796,0.5383,4701.4,4701.3,2.47932996]
[1759789114298,0.3209,4701.4,4701.3,2.47932996]
[1759789116501,0.5291,4701.4,4701.3,2.47932996]
[1759789119700,0.7493,4701.4,4701.3,2.15902996]
[1759789120601,0.7493,4701.4,4701.3,0.64539914]
[1759789121300,0.7493,4701.4,4701.3,2.15902996]
[1759789121601,0.7493,4701.4,4701.3,1.72892996]
[1759789122600,0.7493,4701.4,4701.3,0.21529914]
[1759789123301,0.7493,4701.4,4701.3,0.43299914]
[1759789128405,0.7493,4701.4,4701.3,0.21529914]
[1759789128609,0.7493,4701.4,4701.3,0.00229914]
[1759789128806,0.7493,4701.4,4701.3,0.21529914]
[1759789129204,5.7493,4701.4,4701.3,0.21529914]
[1759789129905,6.24029064,4701.4,4701.3,0.21529914]
[1759789130308,5.7493,4701.4,4701.3,0.21529914]
[1759789135113,0.7565,4700.3,4700.2,0.216]
[1759789135305,0.7565,4700.3,4700.2,0.6472]
[1759789135810,0.7565,4700.3,4700.2,0.9731]
[1759789136012,0.7565,4700.3,4700.2,0.97471478]
[1759789137507,0.7565,4700.3,4700.2,0.64881478]
[1759789140014,0.7565,4700.3,4700.2,0.00161478]
[1759789142213,5.7565,4700.3,4700.2,0.00161478]
[1759789142414,0.1321,4700.0,4699.1,1.51363082]
[1759789142620,0.1321,4699.0,4698.8,1.51363082]
[1759789142918,0.8886,4699.0,4698.9,0.213]
[1759789143511,0.89046931,4699.0,4698.9,0.21569188]
[1759789143714,0.89046931,4699.0,4698.9,0.00269188]
[1759789143916,0.89046931,4699.0,4698.9,0.21569188]
[1759789146418,0.89046931,4699.0,4698.9,0.97579188]
[1759789151724,0.53726931,4699.0,4698.9,0.97579188]
[1759789151927,0.00186931,4699.0,4698.9,0.97579188]
[1759789152316,0.329,4699.5,4698.9,5.64989188]
[1759789152521,0.329,4699.5,4699.4,0.7601]
[1759789152722,0.8886,4700.0,4699.9,0.216]
[1759789153016,0.8886,4700.0,4699.9,0.5052]
[1759789153216,0.8886,4700.0,4699.9,0.8311]
[1759789153517,0.89073094,4700.0,4699.9,0.8311]
[1759789155435,0.33113094,4700.0,4699.9,0.8311]
[1759789156535,0.53753094,4700.0,4699.9,0.8311]
[1759789161539,0.33113094,4700.0,4699.9,0.8311]
[1759789161734,0.00213094,4700.0,4699.9,0.8311]
[1759789162238,0.32643094,4700.0,4699.9,0.8311]
[1759789168641,0.65723094,4700.0,4699.9,0.8311]
[1759789169132,0.87843094,4700.0,4699.9,0.8311]
[1759789174343,0.53163094,4700.0,4699.9,0.8311]
[1759789183760,0.53163094,4700.0,4699.9,0.9731]
[1759789184156,0.66393094,4700.0,4699.9,0.9731]
[1759789184359,0.86523094,4700.0,4699.9,0.9731]
[1759789185359,0.86523094,4700.0,4699.9,2.48673082]
[1759789185747,0.86523094,4700.0,4699.9,0.6472]
[1759789186148,0.3036,4699.9,4699.8,1.72943082]
[1759789186356,0.3036,4699.9,4699.8,1.94243082]
[1759789186357,0.7235,4699.9,4699.8,1.94243082]
[1759789190162,0.7235,4699.9,4699.8,0.4288]
[1759789190555,0.7235,4699.9,4699.8,0.9508]
[1759789190756,0.7235,4699.9,4699.8,0.7378]
[1759789190961,0.7235,4699.9,4699.8,0.9508]
[1759789192865,0.7235,4699.9,4699.8,0.7378]
[1759789193053,0.7235,4699.9,4699.8,0.9508]
[1759789193364,0.7235,4699.9,4699.8,0.7378]
[1759789193661,0.7235,4699.9,4699.8,0.9508]
[1759789193964,0.7235,4699.9,4699.8,0.7378]
[1759789194160,0.7235,4699.9,4699.8,0.9508]
[1759789194555,0.00213094,4700.0,4699.9,0.3078]
[1759789194766,0.1321,4701.5,4699.9,0.3078]
[1759789194767,0.5084,4701.4,4701.3,0.5203]
[1759789195064,0.3058,4701.4,4701.3,41.7554]
[1759789195658,0.3080218,4701.4,4701.3,41.7554]
[1759789197162,0.3080218,4701.4,4701.3,40.8]
[1759789197364,0.6907318,4701.4,4701.3,41.013]
[1759789197759,5.6907318,4701.4,4701.3,40.8]
[1759789197966,0.8497,4700.5,4700.4,0.2221]
[1759789198170,0.5439,4700.5,4700.2,1.51556903]
[1759789198366,0.7216,4700.4,4700.0,1.89838903]
[1759789198559,0.3058,4700.3,4700.1,0.59581]
[1759789198764,0.7216,4700.2,4700.1,0.59581]
[1759789199164,0.7216,4700.2,4700.1,0.81791]
[1759789200066,0.7216,4700.2,4700.1,1.03041]
[1759789200271,0.7216,4700.2,4700.1,1.33821]
[1759789202074,0.7216,4700.2,4700.1,0.81741]
[1759789202267,0.7216,4700.2,4700.1,1.03041]
[1759789202667,0.7216,4700.2,4700.1,1.33821]
[1759789203473,0.7216,4700.2,4700.1,0.81791]
[1759789204672,0.7216,4700.2,4700.1,1.03041]
[1759789204873,0.7216,4700.2,4700.1,1.33821]
[1759789206272,0.7216,4700.2,4700.1,0.38281]
[1759789206470,0.7216,4700.2,4700.1,0.59581]
[1759789206874,0.7216,4700.2,4700.1,0.81791]
[1759789211078,0.1281,4700.0,4699.9,0.2221]
[1759789211278,0.1281,4700.0,4699.9,0.81793]
[1759789211279,0.5439,4700.0,4699.9,0.81793]
[1759789211679,0.8497,4700.0,4699.9,41.61793]
[1759789213575,0.8497,4700.0,4699.9,0.81793]
[1759789215582,0.8497,4700.0,4699.9,1.33823]
[1759789216775,0.1281,4700.5,4700.4,0.60489]
[1759789216776,0.8497,4700.5,4700.4,0.60489]
[1759789216981,0.8497,4700.5,4700.4,0.81789]
[1759789218779,0.8497,4700.5,4700.4,0.60489]
[1759789218980,0.8497,4700.5,4700.4,0.213]
[1759789219482,0.8497,4700.5,4700.4,0.59579]
[1759789220283,0.3018,4699.4,4699.3,1.51556903]
[1759789220478,0.8433,4699.0,4698.9,0.38560188]
[1759789220679,0.8433,4699.0,4698.9,0.00269188]
[1759789220874,0.8433,4699.0,4698.9,0.41989188]
[1759789221079,0.3018,4699.4,4699.3,0.4137]
[1759789221274,0.2095,4699.9,4699.8,0.79653]
[1759789221481,0.5113,4700.5,4700.4,1.12639]
[1759789221682,0.5113,4701.2,4701.1,0.38273]
[1759789221986,0.5113,4701.2,4700.4,0.213]
[1759789221987,0.8433,4700.5,4700.4,0.38278]
[1759789222183,0.2095,4699.8,4699.7,0.2042]
[1759789222385,0.2095,4699.8,4699.7,0.213]
[1759789222386,0.4196,4699.8,4699.7,0.213]
[1759789222783,0.7214,4699.8,4699.7,0.7471]
[1759789223386,0.3018,4700.2,4700.1,0.38281]
[1759789223588,0.7214,4700.8,4700.7,1.12636]
[1759789223782,0.2095,4699.8,4699.7,0.5341]
[1759789223985,0.7214,4699.8,4699.7,0.2042]
[1759789224182,0.1219,4700.0,4699.4,0.91697]
[1759789224183,0.5415,4699.5,4699.4,0.91697]
[1759789224383,0.8433,4699.5,4699.4,1.12997]
[1759789225187,0.8433,4699.5,4699.4,0.7471]
[1759789225383,0.3018,4699.4,4699.0,41.1299]
[1759789225691,0.8433,4699.0,4698.9,0.00269188]
[1759789225880,0.8433,4699.0,4698.9,0.21569188]
[1759789227790,0.7214,4699.0,4698.9,1.34220188]
[1759789227992,0.5113,4699.3,4699.2,0.38288]
[1759789228295,0.5113,4699.3,4699.2,0.79658]
[1759789228490,0.5113,4699.3,4699.2,1.12648]
[1759789228789,0.7214,4699.3,4699.2,0.7436]
[1759789228986,0.8433,4699.0,4698.9,0.00269188]
[1759789229490,0.8433,4699.0,4698.1,0.38297]
[1759789229491,5.8433,4699.0,4697.9,0.35118633]
[1759789229684,0.8433,4698.0,4697.9,0.02128633]
[1759789229891,0.8433,4698.0,4697.9,0.76488633]
[1759789229892,0.7214,4698.0,4697.9,0.76488633]
[1759789230185,0.5113,4698.4,4698.3,0.7436]
[1759789230393,0.5113,4698.4,4698.3,0.9566]
[1759789230589,0.5113,4698.4,4698.3,0.95847565]
[1759789230590,0.72327049,4698.4,4698.3,0.95847565]
[1759789230785,0.72327049,4698.4,4698.3,0.00187565]
[1759789230986,0.51317049,4698.4,4698.3,0.74547565]
[1759789231285,0.5113,4699.3,4699.2,0.4137]
[1759789231491,0.5113,4699.3,4699.2,0.7436]
[1759789231691,0.7214,4699.3,4699.2,0.7436]
[1759789232291,0.72290986,4699.3,4699.2,0.7436]
[1759789232685,0.5113,4700.1,4700.0,0.4137]
[1759789232989,0.95678,4701.4,4700.3,0.4137]
[1759789232990,0.5113,4700.4,4700.3,0.4137]
[1759789233197,0.5113,4700.4,4700.3,0.7436]
[1759789233492,0.7214,4700.4,4700.3,0.7436]
[1759789233684,0.1219,4702.0,4700.3,0.7436]
[1759789233685,0.3018,4700.8,4700.4,0.3299]
[1759789233888,0.00193301,4700.8,4700.7,0.7436]
[1759789234090,0.00193301,4700.8,4700.7,1.33936]
[1759789235086,0.72333301,4700.8,4700.5,0.38278]
[1759789235289,0.2101,4700.4,4700.1,0.58701]
[1759789235490,0.7214,4700.2,4700.1,1.12641]
[1759789235695,0.7214,4700.2,4700.1,1.33941]
[1759789236091,0.7214,4700.2,4700.1,0.9566]
[1759789236491,0.7214,4700.2,4699.7,0.3077]
[1759789236686,0.2151,4699.8,4699.7,0.7162]
[1759789236894,0.4256,4699.8,4699.7,0.9292]
[1759789237494,0.00193301,4700.8,4699.7,0.9292]
[1759789237695,0.3828,4700.2,4700.1,0.3077]
[1759789237892,0.95883301,4700.8,4699.5,0.1311]
[1759789237893,0.4256,4699.7,4699.6,0.4077]
[1759789238092,0.4256,4699.7,4699.6,0.6098]
[1759789238690,0.6637,4699.7,4699.6,0.6098]
[1759789239702,0.2151,4699.7,4699.6,0.8162]
[1759789239898,0.6637,4699.7,4699.6,0.3077]
[1759789240701,0.2151,4699.7,4699.6,0.7162]
[1759789241004,0.2151,4700.6,4700.5,0.8473]
[1759789241505,0.4256,4700.6,4700.5,0.8473]
[1759789242004,0.4256,4700.6,4700.5,0.6409]
[1759789242005,0.6637,4700.6,4700.5,0.6409]
[1759789242393,0.2151,4700.6,4700.5,0.8473]
[1759789242594,0.80836,4700.7,4700.6,0.5141]
[1759789242793,0.80841,4700.1,4700.0,0.8473]
[1759789242998,0.95694,4700.6,4700.5,0.8473]
[1759789242999,0.38277,4700.6,4700.5,0.8473]
[1759789243196,0.80841,4700.1,4700.0,0.8473]
[1759789243498,1.04651,4700.1,4700.0,0.5098]
[1759789243906,0.38284,4699.8,4699.7,0.213]
[1759789244097,0.38284,4699.8,4699.7,0.4151]
[1759789244304,0.80844,4699.8,4699.7,0.4151]
[1759789244504,0.80844,4699.8,4699.7,0.9292]
[1759789246199,0.2381,4700.3,4699.7,0.6215]
[1759789246508,0.2151,4700.1,4700.0,0.8473]
[1759789247006,0.4256,4700.1,4700.0,0.8473]
[1759789247402,0.80845,4699.6,4699.5,1.0603]
[1759789250300,0.80429,4699.1,4699.0,0.8559]
[1759789250600,0.2378,4699.5,4699.0,1.0689]
[1759789250805,1.91574301,4700.8,4699.6,0.7286]
[1759789250806,0.2109,4699.7,4699.6,0.7286]
[1759789251112,0.38284,4699.8,4699.7,0.7286]
[1759789251308,0.59374,4699.8,4699.7,0.7286]
[1759789252012,0.80424,4699.8,4699.7,0.7286]
[1759789252511,0.38282,4700.1,4700.0,0.80342]
[1759789252706,0.38282,4700.1,4700.0,1.24262]
[1759789253410,0.59372,4700.1,4700.0,1.24262]
[1759789253711,1.04202,4700.1,4700.0,0.308]
[1759789254117,0.80422,4700.1,4700.0,0.8598]
[1759789255212,1.04202,4700.1,4700.0,0.6411]
[1759789255809,1.04202,4700.1,4700.0,0.4392]
[1759789256714,1.04202,4700.1,4700.0,0.308]
[1759789257310,0.80422,4700.1,4700.0,0.8598]
[1759789259717,0.59372,4700.1,4700.0,0.8598]
[1759789260308,0.80422,4700.1,4700.0,0.8598]
[1759789260518,0.80424,4699.7,4699.6,0.7229]
[1759789260815,1.04204,4699.7,4699.6,0.7229]
[1759789261014,0.80424,4699.7,4699.6,0.9416]
[1759789262315,0.2378,4700.6,4700.4,0.2019]
[1759789262619,0.59371,4700.1,4700.0,0.8598]
[1759789263313,0.80425,4699.6,4699.5,0.6411]
[1759789263517,1.04205,4699.6,4699.5,0.6411]
[1759789263914,0.80425,4699.6,4699.5,0.6411]
[1759789264218,1.16788,4700.4,4700.0,0.6579]
[1759789264518,0.5937,4700.2,4700.1,0.7286]
[1759789265813,0.95689,4700.9,4700.7,0.7286]
[1759789265814,0.80609301,4700.8,4700.7,0.7286]
[1759789266014,1.28636262,4700.8,4700.7,0.7286]
[1759789266518,1.52416262,4700.8,4700.7,0.7286]
[1759789266713,1.52416262,4700.8,4700.7,0.5099]
[1759789266915,1.52416262,4700.8,4700.7,0.7286]
[1759789266916,1.28636262,4700.8,4700.7,0.7286]
[1759789267112,1.28636262,4700.8,4700.5,0.1312]
[1759789267113,0.59367,4700.6,4700.5,0.4392]
[1759789267316,1.52223961,4700.6,4700.5,0.308]
[1759789267920,1.28443961,4700.6,4700.5,0.6411]
[1759789269619,1.52223961,4700.6,4700.5,0.308]
[1759789269817,0.59371,4700.1,4700.0,0.5518]
[1759789270120,0.59371,4700.1,4700.0,0.8598]
[1759789270423,0.00193301,4700.8,4700.2,0.4206]
[1759789270424,0.3828,4700.3,4700.2,0.4206]
[1759789270720,0.3828,4700.3,4700.2,0.7286]
[1759789271117,0.59559301,4700.8,4700.7,0.7286]
[1759789271711,0.80609301,4700.8,4700.7,0.7286]
[1759789271914,1.28634691,4700.8,4700.7,0.7286]
[1759789272119,1.52414691,4700.8,4700.7,0.308]
[1759789272316,1.28634691,4700.8,4700.7,0.5099]
[1759789272510,1.28634691,4700.8,4700.7,0.7286]
[1759789274826,0.48218691,4700.8,4700.7,0.7286]
[1759789275022,0.00193301,4700.8,4700.7,0.7286]
[1759789275825,0.00193301,4700.8,4700.7,0.9416]
[1759789276317,0.00193301,4700.8,4700.0,1.08824]
[1759789276318,0.4214,4700.1,4700.0,0.3331]
[1759789276517,1.04201,4700.1,4700.0,0.3331]
[1759789277026,1.04201,4700.1,4700.0,0.308]
[1759789277724,1.04201,4700.1,4700.0,0.6411]
[1759789277924,0.80421,4700.1,4700.0,0.6411]
[1759789278320,1.04201,4700.1,4700.0,0.6411]
[1759789279723,0.80421,4700.1,4700.0,0.6411]
[1759789280122,1.04201,4700.1,4700.0,0.6411]
[1759789280822,1.04201,4700.1,4700.0,0.308]
[1759789281024,1.04201,4700.1,4699.5,0.3264]
[1759789281025,1.04655,4699.6,4699.5,0.3264]
[1759789281523,0.60179,4699.1,4699.0,0.8871]
[1759789282416,0.80879,4699.1,4699.0,0.8871]
[1759789284529,0.80879,4699.1,4698.5,0.6695]
[1759789284530,0.80883,4698.6,4698.5,0.6695]
[1759789284826,0.80885,4698.4,4698.3,0.76167565]
[1759789285223,1.04665,4698.4,4698.3,0.54017565]
[1759789285421,0.80885,4698.4,4698.3,0.54017565]
[1759789285623,0.80885,4698.4,4698.3,0.76167565]
[1759789286222,0.2378,4699.2,4699.0,0.127]
[1759789286425,0.38289,4699.1,4699.0,0.8868]
[1759789286631,0.80879,4699.1,4699.0,0.8868]
[1759789288326,1.04659,4699.1,4699.0,0.3264]
[1759789290032,0.38293,4698.6,4698.5,0.8868]
[1759789290234,0.38289,4699.1,4699.0,0.8868]
[1759789290633,0.60179,4699.1,4699.0,0.8868]
[1759789290835,0.80879,4699.1,4699.0,0.8868]
[1759789293934,0.80879,4699.1,4698.5,0.3389]
[1759789293935,0.38293,4698.6,4698.5,0.3389]
[1759789294241,1.04663,4698.6,4698.5,0.3389]
[1759789294443,0.80885,4698.4,4698.3,0.21377565]
[1759789294744,1.04665,4698.4,4698.3,0.54017565]
[1759789295834,0.80885,4698.4,4698.3,0.54017565]
[1759789297345,0.80885,4698.4,4698.3,0.76167565]
[1759789298349,1.04705,4698.4,4698.3,0.32827565]
[1759789298551,1.04705,4698.4,4698.3,0.00187565]
[1759789299043,1.04705,4698.4,4698.3,0.32387565]
[1759789299243,0.80885,4698.4,4698.3,0.74997565]
[1759789299948,1.04705,4698.4,4698.3,0.00187565]
[1759789300148,1.04705,4698.4,4698.3,0.32387565]
[1759789301544,1.04705,4698.4,4698.3,0.53997565]
[1759789301852,1.04705,4698.4,4698.3,0.00187565]
[1759789302951,0.80885,4698.4,4698.3,0.74997565]
[1759789304154,1.04705,4698.4,4698.3,0.74997565]
[1759789304454,1.04705,4698.4,4698.3,0.00187565]
[1759789306255,3.78264317,4698.4,4698.3,0.00187565]
[1759789306548,1.06358,4698.0,4697.9,0.02128633]
[1759789306750,1.19553,4698.7,4697.9,0.76938633]
[1759789306954,1.19553,4698.7,4698.5,0.8695]
[1759789306955,0.92189203,4698.6,4698.5,0.8695]
[1759789307155,0.38293,4698.6,4698.5,0.8695]
[1759789307358,1.06353,4698.6,4698.5,0.87118436]
[1759789307548,1.06353,4698.6,4698.5,0.32368436]
[1759789307750,1.06353,4698.6,4698.5,0.00168436]
[1759789309158,1.54326812,4698.6,4698.5,0.00168436]
[1759789309750,1.30506812,4698.6,4698.5,0.66708436]
[1759789309955,1.30506812,4698.6,4698.5,0.87938436]
[1759789310155,0.82533,4698.6,4698.5,0.87938436]
[1759789310653,0.60493,4698.6,4698.5,0.87938436]
[1759789311958,0.81213,4698.6,4698.5,0.87938436]
[1759789312153,1.04993,4698.6,4698.5,0.87938436]
[1759789312354,0.81213,4698.6,4698.5,0.87938436]
[1759789314550,0.60493,4698.6,4698.5,0.87938436]
[1759789315653,0.38293,4698.6,4698.5,0.87938436]
[1759789317057,0.9572,4699.3,4698.5,0.13448436]
[1759789317258,0.9572,4699.3,4699.0,0.8777]
[1759789317259,0.2094,4699.1,4699.0,0.8777]
[1759789317462,0.68976417,4699.1,4699.0,0.8777]
[1759789317659,0.48036417,4699.1,4699.0,0.8777]
[1759789317856,0.38289,4699.2,4699.0,0.5494]
[1759789318051,1.03729,4699.2,4699.1,0.3283]
[1759789318257,0.59233,4698.6,4698.5,0.87938436]
[1759789318455,0.38293,4698.6,4698.5,0.87938436]
[1759789318761,1.03733,4698.6,4698.5,0.66708436]
[1759789319162,1.28059887,4698.6,4698.5,0.66708436]
[1759789320058,1.51839887,4698.6,4698.5,0.66708436]
[1759789320259,1.28059887,4698.6,4698.5,0.66708436]
[1759789321160,1.51839887,4698.6,4698.5,0.66708436]
[1759789321464,0.2378,4698.1,4697.9,0.34958633]
[1759789321660,0.79958,4698.0,4697.9,0.55388633]
[1759789321957,0.79958,4698.0,4697.9,0.76618633]
[1759789322158,1.03738,4698.0,4697.9,0.34958633]
[1759789322364,1.51860515,4698.0,4697.9,0.34958633]
[1759789322565,4.33563084,4698.0,4697.9,0.02312508]
[1759789324363,1.03744,4697.3,4697.2,0.3283]
[1759789324856,1.51850486,4697.3,4697.2,0.3283]
[1759789325058,1.03744,4697.3,4697.2,0.3283]
[1759789325254,1.03744,4697.3,4697.2,0.53533247]
[1759789325462,1.0400056,4697.3,4697.2,0.53533247]
[1759789327066,0.8022056,4697.3,4697.2,0.74763247]
[1759789327261,0.5950056,4697.3,4697.2,0.74763247]
[1759789327463,0.8022056,4697.3,4697.2,0.74763247]
[1759789328868,1.0400056,4697.3,4697.2,0.33103247]
[1759789329662,1.0400056,4697.3,4697.2,0.53533247]
[1759789329864,0.8022056,4697.3,4697.2,0.53533247]
[1759789330771,0.8022056,4697.3,4697.2,0.74763247]
[1759789332572,0.3856056,4697.3,4697.2,0.74763247]
[1759789333471,0.0025656,4697.3,4697.2,0.74763247]
[1759789335573,0.4191656,4697.3,4697.2,0.74763247]
[1759789336876,0.2119656,4697.3,4697.2,0.74763247]
[1759789337876,0.6569656,4697.3,4697.2,0.33103247]
[1759789338675,0.6569656,4697.3,4697.2,0.53533247]
[1759789338864,0.4191656,4697.3,4697.2,0.75033247]
[1759789340178,0.6571656,4697.3,4697.2,0.53533247]
[1759789340375,0.6571656,4697.3,4697.2,0.33103247]
[1759789340576,3.78482748,4697.3,4697.2,0.00273247]
[1759789340878,4.26491923,4697.3,4697.2,0.00273247]
[1759789341673,4.26491923,4697.3,4697.2,0.33603247]
[1759789342076,1.07509735,4697.3,4697.2,0.75643247]
[1759789342274,0.3856056,4697.3,4697.2,0.75643247]
[1759789342583,1.0470056,4697.3,4697.2,0.54143247]
[1759789343271,1.0470056,4697.3,4697.2,0.33603247]
[1759789343876,0.8090056,4697.3,4697.2,0.54143247]
[1759789344974,4.26780544,4697.3,4697.2,0.00273247]
[1759789345179,9.26780544,4697.3,4697.2,0.00273247]
[1759789347783,0.38311,4696.4,4696.3,0.3333]
[1759789347977,0.80651,4696.4,4696.3,0.5387]
[1759789348178,1.04451,4696.4,4696.3,0.5387]
[1759789348377,1.04451,4696.4,4696.3,0.3333]
[1759789348985,1.04451,4696.4,4696.3,0.33603598]
[1759789349880,3.77358405,4696.4,4696.3,0.33603598]
[1759789350076,4.46766901,4696.4,4696.3,0.00273598]
[1759789351880,0.60416,4695.8,4695.7,0.7537]
[1759789352078,0.59616,4695.8,4695.7,0.7537]
[1759789352290,0.38316,4695.8,4695.7,0.7537]
[1759789352792,0.38316,4695.8,4695.7,0.75640849]
[1759789354688,0.38314,4696.2,4696.0,0.38315]
[1759789354893,0.221,4697.1,4697.0,0.6787]
[1759789355192,0.221,4697.1,4697.0,0.8841]
[1759789355193,0.70165541,4697.1,4697.0,0.8841]
[1759789355590,3.50604759,4697.1,4697.0,0.8841]
[1759789356191,3.70844759,4697.1,4697.0,0.8841]
[1759789357092,3.50604759,4697.1,4697.0,0.8841]
[1759789358194,3.70954759,4697.1,4697.0,0.8841]
[1759789358395,0.4096,4696.6,4696.5,0.3363]
[1759789358594,0.7927,4696.6,4696.5,0.5516]
[1759789358999,0.7927,4696.6,4696.5,0.8775]
[1759789362302,1.0306,4696.6,4696.5,0.8775]
[1759789363303,0.7927,4696.6,4696.5,0.8775]
[1759789363497,1.0306,4696.6,4696.5,0.3259]
[1759789363804,1.0306,4696.6,4696.0,0.6622]
[1759789363805,1.03064,4696.1,4696.0,0.6622]
[1759789364005,1.03064,4696.1,4696.0,0.3259]
[1759789364200,0.2061,4696.1,4696.0,0.8698]
[1759789364401,0.38313,4696.2,4696.1,0.7471]
[1759789365197,0.58923,4696.2,4696.1,0.7471]
[1759789369203,1.07040383,4696.2,4696.1,0.7471]
[1759789370909,0.38312,4696.3,4696.1,0.3259]
[1759789371211,0.38311,4696.5,4696.4,0.7285]
[1759789371706,0.95754,4697.7,4697.2,0.2019]
[1759789371916,0.3856056,4697.3,4697.2,0.7285]
[1759789372109,0.86677894,4697.3,4697.2,0.7285]
[1759789374807,1.28837894,4697.3,4697.2,0.7285]
[1759789375313,0.86677894,4697.3,4697.2,0.7285]
[1759789375817,1.07527894,4697.3,4697.2,0.7285]
[1759789376117,1.28837894,4697.3,4697.2,0.7285]
[1759789376812,1.07987894,4697.3,4697.2,0.7285]
[1759789377012,0.0025656,4697.3,4697.2,0.7285]
[1759789377416,0.0025656,4697.3,4697.2,5.7285]
[1759789378620,0.59143,4698.6,4698.5,0.5334]
[1759789378919,1.07218057,4698.6,4698.5,0.5334]
[1759789379120,1.28528057,4698.6,4698.5,0.8497]
[1759789379414,1.52288057,4698.6,4698.5,0.6478]
[1759789379618,1.52563975,4698.6,4698.5,0.6478]
[1759789382117,1.13632,4697.6,4697.5,0.2019]
[1759789382317,0.1323,4697.0,4696.0,0.38315]
[1759789382612,0.38308,4696.9,4696.8,0.4122]
[1759789383209,0.3408,4698.0,4697.9,0.2103]
[1759789383419,0.8856,4698.0,4697.9,0.4122]
[1759789384009,1.26858,4698.0,4697.9,0.4122]
[1759789384920,1.26858,4698.0,4697.9,0.2103]
[1759789386120,0.1323,4697.5,4697.0,0.4122]
[1759789386422,0.92326,4697.1,4697.0,0.6639]
[1759789386716,0.38306,4697.1,4697.0,0.6639]
[1759789387919,0.71476,4697.1,4697.0,0.6639]
[1759789389019,0.92326,4697.1,4697.0,0.6639]
[1759789389520,0.71476,4697.1,4697.0,0.6639]
[1759789390624,0.92326,4697.1,4697.0,0.6639]
[1759789394717,1.13636,4697.1,4697.0,0.4122]
[1759789396716,1.13636,4697.1,4697.0,0.79527]
[1759789397519,1.13636,4697.1,4697.0,0.4122]
[1759789397825,0.1323,4697.5,4695.7,74.97462849]
[1759789397826,0.72395,4696.0,4695.9,0.6639]
[1759789398013,1.12316459,4696.0,4695.9,0.2103]
[1759789398317,0.3317,4696.0,4695.9,0.7301]
[1759789398516,0.90393,4696.3,4696.2,0.7281]
[1759789398717,0.38312,4696.4,4696.3,0.38312]
[1759789398918,0.3831,4696.6,4696.5,0.8587]
[1759789399124,0.9039,4696.6,4696.5,0.8587]
[1759789399728,1.12563,4696.2,4696.1,0.7267]
[1759789400024,0.5208,4696.5,4696.4,1.11121]
[1759789400221,0.7425,4696.5,4696.4,0.7281]
[1759789400815,0.9577,4696.9,4696.8,0.4227]
[1759789400816,0.2004,4696.9,4696.8,0.4227]
[1759789401020,0.38307,4697.0,4696.9,0.80577]
[1759789401226,0.38307,4697.0,4696.9,1.11117]
[1759789401624,0.38306,4697.2,4697.0,0.93636]
[1759789401822,0.38306,4697.2,4697.1,0.7281]
[1759789402022,1.12556,4697.2,4697.1,0.2083]
[1759789402326,1.12557,4696.9,4696.8,0.7267]
[1759789402527,1.12557,4696.9,4696.8,0.9411]
[1759789402822,1.12557,4696.9,4696.1,1.51556903]
[1759789402823,0.80521,4696.4,4696.3,0.2144]
[1759789403024,1.12561,4696.4,4696.3,0.2083]
[1759789408029,0.2004,4696.4,4696.3,0.7281]
[1759789408330,0.58348,4696.8,4696.7,0.7281]
[1759789408530,0.90388,4696.8,4696.7,0.7281]
[1759789409532,0.5208,4696.8,4696.7,1.11119]
[1759789410127,0.7425,4696.8,4696.7,0.7281]
[1759789410329,1.12558,4696.8,4696.7,0.2083]
[1759789410530,0.7425,4696.8,4696.7,0.2083]
[1759789410825,0.5208,4697.3,4697.2,1.11115]
[1759789411026,0.2004,4697.6,4697.5,0.51362]
[1759789411225,0.38569918,4698.6,4698.3,0.2083]
[1759789411226,0.7425,4698.4,4698.3,0.2083]
[1759789411422,1.22389763,4698.4,4698.3,0.2083]
[1759789411821,0.7425,4698.4,4698.3,0.7281]
[1759789412023,0.20315918,4698.6,4698.5,0.8587]
[1759789412325,0.74525918,4698.6,4698.5,0.7281]
[1759789412828,0.20315918,4698.6,4698.5,0.8587]
[1759789413223,0.20315918,4698.6,4697.8,1.1705]
[1759789413224,0.7425,4698.1,4697.5,0.436]
[1759789413424,0.7425,4697.6,4697.5,0.2083]